[Event "Late-Titled-Tuesday-Blitz-September-12-2023"]
[Site "Chess.com"]
[Date "2023.09.12"]
[Round "8"]
[White "cassoulet"]
[Black "Njal28"]
[Result "0-1"]
[WhiteElo "2793"]
[BlackElo "3105"]
[TimeControl "180+1"]
[EndTime "15:24:40 PDT"]
[Termination "Njal28 won by resignation"]

1. d4 {[%clk 0:02:59.8]} 1... Nf6 {[%clk 0:02:59.7]} 2. Bg5 {[%clk 0:02:58.6]}
2... Ne4 {[%clk 0:02:55.8]} 3. Bf4 {[%clk 0:02:55.5]} 3... c5 {[%clk 0:02:55.7]}
4. Nd2 {[%clk 0:02:55.4]} 4... Nxd2 {[%clk 0:02:47.8]} 5. Qxd2 {[%clk
0:02:56.3]} 5... cxd4 {[%clk 0:02:48.3]} 6. Qxd4 {[%clk 0:02:56.2]} 6... Nc6
{[%clk 0:02:48.8]} 7. Qd2 {[%clk 0:02:54.8]} 7... e5 {[%clk 0:02:43.7]} 8. Bg3
{[%clk 0:02:54.4]} 8... d5 {[%clk 0:02:36.1]} 9. e3 {[%clk 0:02:51.2]} 9... Qb6
{[%clk 0:02:32.7]} 10. c3 {[%clk 0:02:44.2]} 10... Bf5 {[%clk 0:02:24.9]} 11.
Nf3 {[%clk 0:02:41.1]} 11... f6 {[%clk 0:02:25.4]} 12. Be2 {[%clk 0:02:40.5]}
12... Be7 {[%clk 0:02:22.7]} 13. O-O {[%clk 0:02:31.8]} 13... Rd8 {[%clk
0:02:23.2]} 14. Nh4 {[%clk 0:02:29.1]} 14... Be6 {[%clk 0:02:22.7]} 15. Kh1
{[%clk 0:02:22.7]} 15... O-O {[%clk 0:02:18.6]} 16. f4 {[%clk 0:02:22.5]} 16...
e4 {[%clk 0:02:15.1]} 17. f5 {[%clk 0:02:17.4]} 17... Bf7 {[%clk 0:02:15.3]} 18.
Bf4 {[%clk 0:02:13.6]} 18... Ne5 {[%clk 0:02:10.3]} 19. b3 {[%clk 0:02:06.6]}
19... Rc8 {[%clk 0:02:00]} 20. Rac1 {[%clk 0:02:05.8]} 20... Rfd8 {[%clk
0:02:00]} 21. g4 {[%clk 0:02:04.9]} 21... h6 {[%clk 0:01:50.9]} 22. Ng2 {[%clk
0:02:02.9]} 22... Bd6 {[%clk 0:01:41.4]} 23. Ne1 {[%clk 0:02:02.1]} 23... Qc7
{[%clk 0:01:37.3]} 24. Bg3 {[%clk 0:01:42.7]} 24... Ba3 {[%clk 0:01:34.3]} 25.
Rc2 {[%clk 0:01:39.9]} 25... a6 {[%clk 0:01:31.2]} 26. Ng2 {[%clk 0:01:40]}
26... b5 {[%clk 0:01:29.2]} 27. Nf4 {[%clk 0:01:39.7]} 27... Bd6 {[%clk
0:01:19.4]} 28. Rd1 {[%clk 0:01:32.6]} 28... Qc6 {[%clk 0:01:18.1]} 29. Qe1
{[%clk 0:01:29.6]} 29... Bb8 {[%clk 0:01:17.6]} 30. Qf2 {[%clk 0:01:26.6]} 30...
Ba7 {[%clk 0:01:16]} 31. h4 {[%clk 0:01:20.9]} 31... Qc5 {[%clk 0:01:15.9]} 32.
Rd4 {[%clk 0:01:20]} 32... Nc6 {[%clk 0:01:13.1]} 33. g5 {[%clk 0:01:12]} 33...
fxg5 {[%clk 0:01:05.1]} 34. hxg5 {[%clk 0:01:11.3]} 34... Nxd4 {[%clk
0:01:05.8]} 35. exd4 {[%clk 0:01:11.4]} 35... Qb6 {[%clk 0:01:06.5]} 36. g6
{[%clk 0:01:07.6]} 36... Be8 {[%clk 0:01:07]} 37. Ne6 {[%clk 0:01:08]} 37... Bb8
{[%clk 0:01:02.6]} 38. Bxb8 {[%clk 0:00:49.6]} 38... Rxb8 {[%clk 0:01:02.7]} 39.
Qf4 {[%clk 0:00:47.8]} 39... Qd6 {[%clk 0:00:58.6]} 40. Qe5 {[%clk 0:00:44.6]}
40... Rd7 {[%clk 0:00:58.6]} 41. Bg4 {[%clk 0:00:39.7]} 41... Rb6 {[%clk
0:00:36.5]} 42. Nc5 {[%clk 0:00:25.6]} 42... Re7 {[%clk 0:00:35.5]} 43. Qh2
{[%clk 0:00:19.2]} 43... Qxh2+ {[%clk 0:00:35.2]} 44. Kxh2 {[%clk 0:00:20.1]}
44... Rf6 {[%clk 0:00:34.2]} 45. Kg3 {[%clk 0:00:19.5]} 45... h5 {[%clk
0:00:29.9]} 46. Bh3 {[%clk 0:00:19.4]} 46... e3 {[%clk 0:00:30.3]} 47. Re2
{[%clk 0:00:19.1]} 47... a5 {[%clk 0:00:27.3]} 48. b4 {[%clk 0:00:19]} 48...
axb4 {[%clk 0:00:27.2]} 49. cxb4 {[%clk 0:00:19.9]} 49... Kf8 {[%clk 0:00:18.4]}
50. Ne6+ {[%clk 0:00:16.5]} 50... Rexe6 {[%clk 0:00:18.9]} 51. fxe6 {[%clk
0:00:17.4]} 51... Rxg6+ {[%clk 0:00:19.2]} 52. Kf4 {[%clk 0:00:17.5]} 52... Rf6+
{[%clk 0:00:18.6]} 53. Ke5 {[%clk 0:00:17.6]} 53... Ke7 {[%clk 0:00:18.1]} 54.
Rxe3 {[%clk 0:00:15.5]} 54... g5 {[%clk 0:00:10]} 55. Kxd5 {[%clk 0:00:14.2]}
55... g4 {[%clk 0:00:10.1]} 56. Bg2 {[%clk 0:00:13.4]} 56... h4 {[%clk
0:00:10.5]} 57. Kc5 {[%clk 0:00:10.2]} 57... h3 {[%clk 0:00:10.8]} 58. Bxh3
{[%clk 0:00:05.2]} 58... gxh3 {[%clk 0:00:11.7]} 59. d5 {[%clk 0:00:05.8]} 59...
Rh6 {[%clk 0:00:09.7]} 60. d6+ {[%clk 0:00:06]} 60... Kd8 {[%clk 0:00:10.1]} 61.
d7 {[%clk 0:00:03.6]} 61... Bxd7 {[%clk 0:00:09.9]} 62. exd7 {[%clk 0:00:04]}
62... h2 {[%clk 0:00:08.8]} 63. Re1 {[%clk 0:00:01.8]} 63... h1=Q {[%clk
0:00:08.5]} 64. Rxh1 {[%clk 0:00:02.5]} 64... Rxh1 {[%clk 0:00:09]} 65. Kxb5
{[%clk 0:00:03.4]} 65... Kxd7 {[%clk 0:00:09.6]} 66. a4 {[%clk 0:00:03.9]} 66...
Kc7 {[%clk 0:00:09.9]} 67. Ka6 {[%clk 0:00:04.4]} 67... Kb8 {[%clk 0:00:10.8]}
68. b5 {[%clk 0:00:04.9]} 68... Ka8 {[%clk 0:00:11.7]} 69. b6 {[%clk 0:00:05.3]}
69... Rh6 {[%clk 0:00:12.3]} 70. a5 {[%clk 0:00:05.9]} 70... Rg6 {[%clk
0:00:12.8]} 71. Kb5 {[%clk 0:00:06.4]} 71... Rg5+ {[%clk 0:00:12.5]} 72. Ka6
{[%clk 0:00:07]} 72... Rh5 {[%clk 0:00:11.9]} 73. b7+ {[%clk 0:00:06.2]} 73...
Kb8 {[%clk 0:00:12.5]} 74. Kb6 {[%clk 0:00:07.1]} 74... Rh6+ {[%clk 0:00:12.9]}
75. Kb5 {[%clk 0:00:07.5]} 75... Kxb7 {[%clk 0:00:13.8]} 76. a6+ {[%clk
0:00:08.1]} 76... Rxa6 {[%clk 0:00:14.3]} 0-1

[Event "Late-Titled-Tuesday-Blitz-September-12-2023"]
[Site "Chess.com"]
[Date "2023.09.12"]
[Round "8"]
[White "lachesisQ"]
[Black "MikaelyanArman"]
[Result "1/2-1/2"]
[WhiteElo "3082"]
[BlackElo "2939"]
[TimeControl "180+1"]
[EndTime "15:24:44 PDT"]
[Termination "Game drawn by repetition"]

1. e4 {[%clk 0:03:00.9]} 1... c5 {[%clk 0:02:57.9]} 2. Nf3 {[%clk 0:03:00.7]}
2... Nc6 {[%clk 0:02:58.2]} 3. c3 {[%clk 0:02:58.8]} 3... Nf6 {[%clk 0:02:57.9]}
4. e5 {[%clk 0:02:59]} 4... Nd5 {[%clk 0:02:58.4]} 5. Bc4 {[%clk 0:02:59.6]}
5... Nb6 {[%clk 0:02:53.8]} 6. Bb3 {[%clk 0:02:59.9]} 6... d5 {[%clk 0:02:46.5]}
7. exd6 {[%clk 0:03:00]} 7... Qxd6 {[%clk 0:02:46.5]} 8. O-O {[%clk 0:02:58.8]}
8... Be6 {[%clk 0:02:28.3]} 9. Re1 {[%clk 0:02:55.6]} 9... Bxb3 {[%clk 0:02:26]}
10. axb3 {[%clk 0:02:56.5]} 10... e6 {[%clk 0:02:19]} 11. Na3 {[%clk 0:02:56.4]}
11... Be7 {[%clk 0:02:15.6]} 12. d4 {[%clk 0:02:44.9]} 12... cxd4 {[%clk
0:02:11.6]} 13. Nb5 {[%clk 0:02:44.7]} 13... Qd8 {[%clk 0:01:53.1]} 14. Nbxd4
{[%clk 0:02:33.2]} 14... Nxd4 {[%clk 0:01:52.9]} 15. Nxd4 {[%clk 0:02:32.7]}
15... O-O {[%clk 0:01:53]} 16. Qf3 {[%clk 0:02:28.5]} 16... Nd5 {[%clk
0:01:49.1]} 17. Bd2 {[%clk 0:02:14.7]} 17... Bf6 {[%clk 0:01:45.4]} 18. Ne2
{[%clk 0:02:06.2]} 18... a5 {[%clk 0:01:41.9]} 19. Nf4 {[%clk 0:01:55.3]} 19...
Nxf4 {[%clk 0:01:39.4]} 20. Bxf4 {[%clk 0:01:56.2]} 20... Qb6 {[%clk 0:01:37.1]}
21. Qd1 {[%clk 0:01:53.9]} 21... Rfd8 {[%clk 0:01:36.2]} 22. Qc2 {[%clk
0:01:54]} 22... Rd5 {[%clk 0:01:35.1]} 23. Be3 {[%clk 0:01:44.4]} 23... Qc6
{[%clk 0:01:24.7]} 24. b4 {[%clk 0:01:41.2]} 24... a4 {[%clk 0:01:18.9]} 25.
Red1 {[%clk 0:01:33.4]} 25... b5 {[%clk 0:01:12.5]} 26. Rxd5 {[%clk 0:01:32.5]}
26... Qxd5 {[%clk 0:01:13.4]} 27. Rd1 {[%clk 0:01:32.4]} 27... Qb3 {[%clk
0:01:09.3]} 28. Qe2 {[%clk 0:01:28.8]} 28... h6 {[%clk 0:01:03.5]} 29. h3 {[%clk
0:01:27.7]} 29... a3 {[%clk 0:00:58.7]} 30. bxa3 {[%clk 0:01:27.8]} 30... Rxa3
{[%clk 0:00:54]} 31. Rd7 {[%clk 0:01:27.7]} 31... Qb1+ {[%clk 0:00:41.2]} 32.
Kh2 {[%clk 0:01:27.4]} 32... Qf5 {[%clk 0:00:41.9]} 33. Bd4 {[%clk 0:01:18.3]}
33... Bxd4 {[%clk 0:00:40]} 34. cxd4 {[%clk 0:01:19.2]} 34... Qf4+ {[%clk
0:00:33.1]} 35. g3 {[%clk 0:01:12.5]} 35... Qf5 {[%clk 0:00:32]} 36. Rc7 {[%clk
0:00:42.4]} 36... Ra1 {[%clk 0:00:24.7]} 37. Rc8+ {[%clk 0:00:22.3]} 37... Kh7
{[%clk 0:00:24.6]} 38. Qc2 {[%clk 0:00:23.2]} 38... Qxc2 {[%clk 0:00:24.7]} 39.
Rxc2 {[%clk 0:00:24.1]} 39... Rb1 {[%clk 0:00:25.2]} 40. d5 {[%clk 0:00:24.6]}
40... exd5 {[%clk 0:00:24.2]} 41. Rd2 {[%clk 0:00:25.1]} 41... Rxb4 {[%clk
0:00:24.4]} 42. Rxd5 {[%clk 0:00:25.5]} 42... g5 {[%clk 0:00:20.9]} 43. Rd6
{[%clk 0:00:22.9]} 43... Rc4 {[%clk 0:00:18.4]} 44. Rb6 {[%clk 0:00:22.8]} 44...
b4 {[%clk 0:00:18.6]} 45. Kg2 {[%clk 0:00:23.5]} 45... Kg7 {[%clk 0:00:18.7]}
46. Kf3 {[%clk 0:00:23.7]} 46... f6 {[%clk 0:00:18.1]} 47. Ke3 {[%clk
0:00:23.3]} 47... Kg6 {[%clk 0:00:18.5]} 48. Rb5 {[%clk 0:00:23.4]} 48... h5
{[%clk 0:00:16.9]} 49. Kf3 {[%clk 0:00:21.5]} 49... h4 {[%clk 0:00:16.6]} 50.
Kg2 {[%clk 0:00:18.7]} 50... hxg3 {[%clk 0:00:14.1]} 51. fxg3 {[%clk 0:00:18.4]}
51... Rc2+ {[%clk 0:00:13.9]} 52. Kf3 {[%clk 0:00:18.7]} 52... Rc3+ {[%clk
0:00:14.3]} 53. Kg2 {[%clk 0:00:14.8]} 53... b3 {[%clk 0:00:14.9]} 54. h4 {[%clk
0:00:14.9]} 54... g4 {[%clk 0:00:14.5]} 55. Rb4 {[%clk 0:00:14.8]} 55... f5
{[%clk 0:00:12.8]} 56. Kf2 {[%clk 0:00:14.6]} 56... Rf3+ {[%clk 0:00:11.3]} 57.
Kg2 {[%clk 0:00:14.1]} 57... Rc3 {[%clk 0:00:09.6]} 58. Kf2 {[%clk 0:00:14]}
58... Rc2+ {[%clk 0:00:10.1]} 59. Ke3 {[%clk 0:00:14.2]} 59... b2 {[%clk
0:00:10.8]} 60. Rb6+ {[%clk 0:00:14.4]} 60... Kh5 {[%clk 0:00:07.8]} 61. Rb5
{[%clk 0:00:14]} 61... Kg6 {[%clk 0:00:06.7]} 62. Rb6+ {[%clk 0:00:13.9]} 62...
Kg7 {[%clk 0:00:06.8]} 63. Kf4 {[%clk 0:00:13.7]} 63... Rf2+ {[%clk 0:00:05.9]}
64. Kg5 {[%clk 0:00:14.1]} 64... f4 {[%clk 0:00:06]} 65. Rb7+ {[%clk 0:00:13.9]}
65... Kf8 {[%clk 0:00:05.8]} 66. Kxg4 {[%clk 0:00:13.3]} 66... fxg3 {[%clk
0:00:05.8]} 67. Kxg3 {[%clk 0:00:14.2]} 67... Rc2 {[%clk 0:00:06.1]} 68. Kg4
{[%clk 0:00:14.7]} 68... Rc4+ {[%clk 0:00:06]} 69. Kg5 {[%clk 0:00:15.2]} 69...
Rc5+ {[%clk 0:00:06.4]} 70. Kg6 {[%clk 0:00:15.6]} 70... Rc6+ {[%clk 0:00:06.8]}
71. Kg5 {[%clk 0:00:15.9]} 71... Rc5+ {[%clk 0:00:07.3]} 72. Kf4 {[%clk
0:00:16]} 72... Rc4+ {[%clk 0:00:07.9]} 73. Kg3 {[%clk 0:00:16.6]} 73... Rc3+
{[%clk 0:00:08.5]} 74. Kg2 {[%clk 0:00:16.3]} 74... Rc2+ {[%clk 0:00:08.5]} 75.
Kf3 {[%clk 0:00:16.8]} 75... Rc3+ {[%clk 0:00:08.6]} 76. Kg4 {[%clk 0:00:16.4]}
76... Rc4+ {[%clk 0:00:09]} 77. Kg5 {[%clk 0:00:15.1]} 77... Rc5+ {[%clk
0:00:09.2]} 1/2-1/2

[Event "Late-Titled-Tuesday-Blitz-September-12-2023"]
[Site "Chess.com"]
[Date "2023.09.12"]
[Round "8"]
[White "Bilan_Danila"]
[Black "pokochajszachy"]
[Result "1-0"]
[WhiteElo "2564"]
[BlackElo "2390"]
[TimeControl "180+1"]
[EndTime "15:24:48 PDT"]
[Termination "Bilan_Danila won by resignation"]

1. d4 {[%clk 0:03:00.9]} 1... d5 {[%clk 0:02:59]} 2. Nf3 {[%clk 0:03:01]} 2...
Nf6 {[%clk 0:02:58.7]} 3. c4 {[%clk 0:03:01.1]} 3... c6 {[%clk 0:02:59]} 4. Nc3
{[%clk 0:03:00.7]} 4... e6 {[%clk 0:02:59.4]} 5. Bg5 {[%clk 0:03:00.1]} 5... h6
{[%clk 0:02:59.3]} 6. Bh4 {[%clk 0:02:58.1]} 6... dxc4 {[%clk 0:02:58.9]} 7. e4
{[%clk 0:02:58.3]} 7... g5 {[%clk 0:02:58.8]} 8. Bg3 {[%clk 0:02:56.7]} 8... b5
{[%clk 0:02:59.5]} 9. h4 {[%clk 0:02:50.3]} 9... g4 {[%clk 0:02:59.2]} 10. Ne5
{[%clk 0:02:47.5]} 10... Bb7 {[%clk 0:02:57.1]} 11. Be2 {[%clk 0:02:29.7]} 11...
Nbd7 {[%clk 0:02:54.2]} 12. Nxg4 {[%clk 0:02:21.2]} 12... Rg8 {[%clk 0:02:54.3]}
13. Nxf6+ {[%clk 0:02:11.5]} 13... Nxf6 {[%clk 0:02:44.6]} 14. Bf3 {[%clk
0:02:06.9]} 14... b4 {[%clk 0:02:28.6]} 15. Na4 {[%clk 0:01:56.7]} 15... c5
{[%clk 0:02:19.9]} 16. e5 {[%clk 0:01:18.2]} 16... Ne4 {[%clk 0:02:02.3]} 17.
Nxc5 {[%clk 0:00:27]} 17... Bxc5 {[%clk 0:01:53.5]} 18. dxc5 {[%clk 0:00:22.6]}
18... Nxc5 {[%clk 0:01:53.5]} 19. Bxb7 {[%clk 0:00:18.8]} 19... Qxd1+ {[%clk
0:01:45.5]} 20. Rxd1 {[%clk 0:00:19.3]} 20... Nxb7 {[%clk 0:01:46.4]} 21. Rd4
{[%clk 0:00:16.3]} 21... Rc8 {[%clk 0:01:44.2]} 22. Ke2 {[%clk 0:00:13.1]} 22...
c3 {[%clk 0:01:33]} 23. Rxb4 {[%clk 0:00:10.9]} 23... cxb2 {[%clk 0:00:59.5]}
24. Rxb7 {[%clk 0:00:07.9]} 24... Rxg3 {[%clk 0:01:00.1]} 25. fxg3 {[%clk
0:00:03.6]} 25... Rc1 {[%clk 0:00:59.5]} 26. Rxb2 {[%clk 0:00:03.6]} 26... Rxh1
{[%clk 0:00:59.1]} 27. Rb8+ {[%clk 0:00:03]} 27... Ke7 {[%clk 0:00:58.6]} 28.
Rb7+ {[%clk 0:00:03.6]} 28... Kf8 {[%clk 0:00:58.2]} 29. Rxa7 {[%clk 0:00:03.7]}
29... Rb1 {[%clk 0:00:56.1]} 30. a4 {[%clk 0:00:03.7]} 30... Rb2+ {[%clk
0:00:56.1]} 31. Kf3 {[%clk 0:00:04.3]} 31... h5 {[%clk 0:00:56.6]} 32. a5 {[%clk
0:00:02.2]} 32... Rb3+ {[%clk 0:00:57.1]} 33. Kf4 {[%clk 0:00:02.8]} 33... Kg7
{[%clk 0:00:54.2]} 34. a6 {[%clk 0:00:02.9]} 34... Kg6 {[%clk 0:00:54.7]} 35.
Rb7 {[%clk 0:00:03]} 35... Ra3 {[%clk 0:00:54]} 36. a7 {[%clk 0:00:03.6]} 36...
Ra4+ {[%clk 0:00:54.2]} 37. Ke3 {[%clk 0:00:04]} 37... Kf5 {[%clk 0:00:52.1]}
38. Rxf7+ {[%clk 0:00:03.6]} 38... Kxe5 {[%clk 0:00:52.6]} 39. Kd3 {[%clk
0:00:04.5]} 39... Kd5 {[%clk 0:00:47.2]} 40. Kc3 {[%clk 0:00:04.7]} 40... Ra1
{[%clk 0:00:46.3]} 41. Kb4 {[%clk 0:00:04.8]} 41... Kc6 {[%clk 0:00:44.7]} 42.
Kc4 {[%clk 0:00:03.9]} 42... Ra4+ {[%clk 0:00:43.8]} 43. Kb3 {[%clk 0:00:03.3]}
43... Ra1 {[%clk 0:00:43.5]} 44. Kc3 {[%clk 0:00:03.8]} 44... Kd5 {[%clk
0:00:42.3]} 45. Kb4 {[%clk 0:00:03.9]} 45... Kc6 {[%clk 0:00:42.3]} 46. Kc4
{[%clk 0:00:04.5]} 46... Ra4+ {[%clk 0:00:41.7]} 47. Kd3 {[%clk 0:00:05]} 47...
Kd5 {[%clk 0:00:40.8]} 48. Ke3 {[%clk 0:00:05.3]} 48... e5 {[%clk 0:00:39.4]}
49. Kf3 {[%clk 0:00:04.7]} 49... Ra3+ {[%clk 0:00:38.4]} 50. Kf2 {[%clk
0:00:05]} 50... Ke4 {[%clk 0:00:37]} 51. g4 {[%clk 0:00:05.3]} 51... hxg4 {[%clk
0:00:36]} 52. h5 {[%clk 0:00:05.9]} 52... g3+ {[%clk 0:00:36.5]} 53. Ke2 {[%clk
0:00:06.3]} 53... Ra2+ {[%clk 0:00:36.4]} 54. Kd1 {[%clk 0:00:06.3]} 54... Kd3
{[%clk 0:00:34.2]} 55. Kc1 {[%clk 0:00:06.2]} 55... e4 {[%clk 0:00:32.7]} 56. h6
{[%clk 0:00:06.1]} 56... e3 {[%clk 0:00:30.9]} 57. h7 {[%clk 0:00:05.3]} 57...
e2 {[%clk 0:00:30.2]} 58. Re7 {[%clk 0:00:05.7]} 58... Rxa7 {[%clk 0:00:25.9]}
59. h8=Q {[%clk 0:00:03.9]} 59... Rxe7 {[%clk 0:00:25.1]} 60. Qd8+ {[%clk
0:00:04.5]} 60... Ke3 {[%clk 0:00:23.5]} 61. Qxe7+ {[%clk 0:00:04.8]} 61... Kf2
{[%clk 0:00:24.4]} 62. Qf6+ {[%clk 0:00:05.2]} 62... Ke1 {[%clk 0:00:14]} 63.
Qe5 {[%clk 0:00:05.4]} 63... Kf2 {[%clk 0:00:12.7]} 64. Qf4+ {[%clk 0:00:06]}
64... Ke1 {[%clk 0:00:13]} 65. Qxg3+ {[%clk 0:00:05.7]} 65... Kf1 {[%clk
0:00:12.8]} 66. Qf3+ {[%clk 0:00:06]} 66... Ke1 {[%clk 0:00:11.7]} 67. Qxe2+
{[%clk 0:00:06.2]} 67... Kxe2 {[%clk 0:00:12.2]} 68. g4 {[%clk 0:00:07.1]} 68...
Kf3 {[%clk 0:00:12.9]} 69. g5 {[%clk 0:00:08]} 69... Kg4 {[%clk 0:00:13.8]} 70.
g6 {[%clk 0:00:08.8]} 1-0

[Event "Late-Titled-Tuesday-Blitz-September-12-2023"]
[Site "Chess.com"]
[Date "2023.09.12"]
[Round "8"]
[White "Vaibhavraut99"]
[Black "Skagoogle"]
[Result "1/2-1/2"]
[WhiteElo "2585"]
[BlackElo "2777"]
[TimeControl "180+1"]
[EndTime "15:24:51 PDT"]
[Termination "Game drawn - insufficient material"]

1. e4 {[%clk 0:02:52.2]} 1... c5 {[%clk 0:02:58.7]} 2. Nf3 {[%clk 0:02:36.9]}
2... d6 {[%clk 0:02:58]} 3. Bb5+ {[%clk 0:02:36]} 3... Nd7 {[%clk 0:02:55.9]} 4.
O-O {[%clk 0:02:35.6]} 4... a6 {[%clk 0:02:55.2]} 5. Bd3 {[%clk 0:02:31.8]} 5...
Qc7 {[%clk 0:02:55.5]} 6. c3 {[%clk 0:02:31.8]} 6... c4 {[%clk 0:02:55.8]} 7.
Bc2 {[%clk 0:02:32.3]} 7... b5 {[%clk 0:02:56]} 8. a4 {[%clk 0:02:31.1]} 8...
Bb7 {[%clk 0:02:55.4]} 9. axb5 {[%clk 0:02:30.2]} 9... axb5 {[%clk 0:02:55.3]}
10. Rxa8+ {[%clk 0:02:31.1]} 10... Bxa8 {[%clk 0:02:56.2]} 11. b3 {[%clk
0:02:31.7]} 11... Ngf6 {[%clk 0:02:55.3]} 12. Re1 {[%clk 0:02:29.2]} 12... e6
{[%clk 0:02:48.3]} 13. Na3 {[%clk 0:02:25]} 13... d5 {[%clk 0:02:27.1]} 14. exd5
{[%clk 0:02:04.9]} 14... Bxd5 {[%clk 0:02:28]} 15. Nxb5 {[%clk 0:02:03.6]} 15...
Qb6 {[%clk 0:02:21.4]} 16. bxc4 {[%clk 0:02:00.8]} 16... Bxc4 {[%clk 0:02:21.5]}
17. Nbd4 {[%clk 0:02:00.2]} 17... Bc5 {[%clk 0:02:20.7]} 18. d3 {[%clk
0:01:54.6]} 18... Bd5 {[%clk 0:02:20.7]} 19. Be3 {[%clk 0:01:47.3]} 19... O-O
{[%clk 0:02:19.8]} 20. c4 {[%clk 0:01:41.6]} 20... Ba8 {[%clk 0:02:06.5]} 21.
Nb3 {[%clk 0:01:31.1]} 21... Bxe3 {[%clk 0:02:04.4]} 22. Rxe3 {[%clk 0:01:32]}
22... Ng4 {[%clk 0:02:00.6]} 23. Re2 {[%clk 0:01:15.3]} 23... Bxf3 {[%clk
0:01:58.9]} 24. gxf3 {[%clk 0:01:16.2]} 24... Nge5 {[%clk 0:01:59.1]} 25. Re3
{[%clk 0:01:13.3]} 25... Rd8 {[%clk 0:01:57.6]} 26. Qa1 {[%clk 0:01:11.2]} 26...
Nc6 {[%clk 0:01:44.4]} 27. d4 {[%clk 0:00:47.7]} 27... Nf6 {[%clk 0:01:43.9]}
28. Be4 {[%clk 0:00:17.4]} 28... Nxd4 {[%clk 0:01:25.8]} 29. c5 {[%clk
0:00:09.4]} 29... Nxb3 {[%clk 0:00:50.8]} 30. cxb6 {[%clk 0:00:09.3]} 30... Nxa1
{[%clk 0:00:51.2]} 31. Ra3 {[%clk 0:00:09.9]} 31... Nd7 {[%clk 0:00:46.8]} 32.
b7 {[%clk 0:00:05.9]} 32... Kf8 {[%clk 0:00:46.7]} 33. Rxa1 {[%clk 0:00:05.3]}
33... Ke7 {[%clk 0:00:46.7]} 34. Rd1 {[%clk 0:00:04.2]} 34... Rb8 {[%clk
0:00:42.2]} 35. f4 {[%clk 0:00:02.6]} 35... Nc5 {[%clk 0:00:41.1]} 36. Bf3
{[%clk 0:00:02.2]} 36... f5 {[%clk 0:00:34.2]} 37. Kg2 {[%clk 0:00:02.6]} 37...
g6 {[%clk 0:00:24]} 38. h4 {[%clk 0:00:03.2]} 38... Nd7 {[%clk 0:00:22.8]} 39.
Rb1 {[%clk 0:00:02.3]} 39... Kd6 {[%clk 0:00:20.5]} 40. Kg3 {[%clk 0:00:03]}
40... Nc5 {[%clk 0:00:20.1]} 41. Rd1+ {[%clk 0:00:03.2]} 41... Kc7 {[%clk
0:00:20.1]} 42. Re1 {[%clk 0:00:03.7]} 42... Re8 {[%clk 0:00:14.8]} 43. Rc1
{[%clk 0:00:03.4]} 43... Kd6 {[%clk 0:00:13.7]} 44. Rd1+ {[%clk 0:00:03.8]}
44... Kc7 {[%clk 0:00:13.9]} 45. Rc1 {[%clk 0:00:04.3]} 45... Kd6 {[%clk
0:00:14.2]} 46. Rb1 {[%clk 0:00:05]} 46... Rb8 {[%clk 0:00:13.6]} 47. h5 {[%clk
0:00:04.9]} 47... gxh5 {[%clk 0:00:12.6]} 48. Kh4 {[%clk 0:00:05.2]} 48... Kc7
{[%clk 0:00:09.2]} 49. Rc1 {[%clk 0:00:03.9]} 49... Kd6 {[%clk 0:00:09.5]} 50.
Kxh5 {[%clk 0:00:03.8]} 50... Nxb7 {[%clk 0:00:05.3]} 51. Rb1 {[%clk 0:00:04.3]}
51... Kc7 {[%clk 0:00:05.9]} 52. Bxb7 {[%clk 0:00:03.3]} 52... Rxb7 {[%clk
0:00:06.3]} 53. Rxb7+ {[%clk 0:00:04.2]} 53... Kxb7 {[%clk 0:00:07.1]} 54. Kh6
{[%clk 0:00:04.8]} 54... Kc6 {[%clk 0:00:07.4]} 55. Kxh7 {[%clk 0:00:05.4]}
55... Kd5 {[%clk 0:00:08.3]} 56. Kg6 {[%clk 0:00:06]} 56... Ke4 {[%clk
0:00:08.7]} 57. Kg5 {[%clk 0:00:05.9]} 57... e5 {[%clk 0:00:03]} 58. fxe5 {[%clk
0:00:06.3]} 58... Kxe5 {[%clk 0:00:03.9]} 59. f3 {[%clk 0:00:05.1]} 59... f4
{[%clk 0:00:04.3]} 60. Kg4 {[%clk 0:00:04.5]} 60... Ke6 {[%clk 0:00:04.9]} 61.
Kg5 {[%clk 0:00:04.3]} 61... Ke5 {[%clk 0:00:05.2]} 62. Kg4 {[%clk 0:00:04.8]}
62... Ke6 {[%clk 0:00:05.8]} 63. Kxf4 {[%clk 0:00:05.7]} 63... Kf6 {[%clk
0:00:06.4]} 64. Ke4 {[%clk 0:00:06.2]} 64... Ke6 {[%clk 0:00:07]} 65. Ke3 {[%clk
0:00:06.3]} 65... Ke5 {[%clk 0:00:07.4]} 66. f4+ {[%clk 0:00:06.6]} 66... Kf5
{[%clk 0:00:07.9]} 67. Kf3 {[%clk 0:00:07.5]} 67... Kf6 {[%clk 0:00:08.5]} 68.
Ke4 {[%clk 0:00:08.4]} 68... Ke6 {[%clk 0:00:09.1]} 69. Kd4 {[%clk 0:00:07.7]}
69... Kf5 {[%clk 0:00:09.5]} 70. Ke3 {[%clk 0:00:08.6]} 70... Kf6 {[%clk
0:00:10.1]} 71. Ke4 {[%clk 0:00:09.5]} 71... Ke6 {[%clk 0:00:10.7]} 72. f5+
{[%clk 0:00:10.2]} 72... Kf6 {[%clk 0:00:10.9]} 73. Kf3 {[%clk 0:00:11]} 73...
Kxf5 {[%clk 0:00:10.8]} 1/2-1/2